Cogmind - Beta 14 X2 @@@ ROGUE MODE // 2024.08.03 @ 15:37:59 Player: Some Pennies Result: Destroyed by S-27 Virus with Autogun Performance ------------- Evolutions (5) 2500 Regions Visited (10) 2000 Robots Destroyed (191) 955 Value Destroyed (5562) 5562 Prototype IDs (34) 680 Alien Tech Used (0) 0 Bonus (1359) 1359 TOTAL SCORE: 13056 Bonus ------- High Alert Combat Kills 717 Follower Combat Kills 342 Registered with UFD 300 Cogmind --------- Core Integrity 0/1000 Matter 300/300 Energy 99/100 System Corruption 1% Temperature Cool (9) Movement Core (50) Location -5/Factory Parts ------- > --- POWER (1) -------- (None) > --- PROPULSION (5) --- Overtuned Huge Scrapsphere > --- UTILITY (9) ------ Core Analyzer > --- WEAPON (2) ------- (None) > --- INVENTORY (5) ---- Medium Storage Unit Peak State ------------ > --- POWER ------------ Improved Deuterium Engine > --- PROPULSION ------- Improved Gravmag System Improved Gravmag System Improved Gravmag System Improved Gravmag System Improved Gravmag System > --- UTILITY ---------- Improved Cooling System Huge Storage Unit Advanced Signal Interpreter Core Analyzer Improved Heavy Armor Plating Hacking Suite > --- WEAPON ----------- Enhanced Autogun Gauss Cannon > --- INVENTORY -------- Fusion Compressor Improved Gravmag System Improved VTOL Module Medium Storage Unit Enhanced Optical Array Experimental Sensor Array Experimental Terrain Scanner Experimental Targeting Computer Cloaking Device Improved Utility Shielding Hardened Medium Armor Plating Hardened Medium Armor Plating Improved Medium Armor Plating Force Field Authchip [Propulsion] Authchip [Propulsion] Authchip [Device] Improved EM Pulse Cannon Improved EM Pulse Cannon Gauss Cannon Rocket Launcher Improved Datajack Power Sword Vortex Trap [Rating: 74] Favorites ----------- Power Improved Deuterium Engine Engine Improved Deuterium Engine Power Core Light Nuclear Core Propulsion Armored Treads Treads Armored Treads Leg Carbon-fiber Leg Wheel Compact Wheel Hover Unit Improved Gravmag System Flight Unit Nuclear Pulse Array Utility Huge Storage Unit Device Improved Cooling System Storage Huge Storage Unit Processor Core Analyzer Hackware System Shield Protection Hardened Medium Armor Plating Weapon Gauss Cannon Energy Gun EM Pulse Gun Energy Cannon Beam Cannon Ballistic Gun Enhanced Autogun Ballistic Cannon Gauss Cannon Launcher Grenade Launcher Impact Weapon Heavy Flail Slashing Weapon Katana Special Melee Weapon Improved Datajack Build | -11 -10 -10 -10 -9 -8 -8 -8 -8 -6 -5 ------- Run | Yrd Mat Min Exi Min Mat Sto Rec Scr Fac Fac Slots Evolved 10 | . . . . . 4 . . . 4 2 Power . | . . . . . . . . . . . Propulsion 3 | . . . . . 2 . . . 1 . Utility 7 | . . . . . 2 . . . 3 2 Weapon . | . . . . . . . . . . . Parts Attached 186 | 8 16 4 4 . 56 11 5 4 61 17 Power 17 | 1 4 1 . . 3 1 . 1 5 1 Engine 12 | 1 4 . . . 1 1 . 1 3 1 Core 5 | . . 1 . . 2 . . . 2 . Reactor . | . . . . . . . . . . . Propulsion 47 | 2 3 . . . 19 . 2 2 14 5 Treads 28 | 1 1 . . . 18 . 1 2 4 1 Leg 4 | . . . . . 1 . . . 2 1 Wheel 4 | 1 2 . . . . . . . . 1 Hover 8 | . . . . . . . 1 . 7 . Flight 3 | . . . . . . . . . 1 2 Utility 58 | 2 3 2 2 . 13 4 2 . 25 5 Device 20 | 1 1 2 1 . 3 1 . . 7 4 Storage 5 | 1 2 . 1 . . . . . 1 . Processor 6 | . . . . . 1 . . . 4 1 Hackware 6 | . . . . . 2 . 1 . 3 . Protection 21 | . . . . . 7 3 1 . 10 . Artifact . | . . . . . . . . . . . Weapon 64 | 3 6 1 2 . 21 6 1 1 17 6 Energy Gun 5 | 2 . . . . . . . . . 3 Energy Cannon 12 | . 2 . 1 . 6 . . . 2 1 Ballistic Gun 23 | 1 3 1 1 . 7 4 . . 4 2 Ballistic Cannon 10 | . . . . . 3 2 . 1 4 . Launcher 6 | . 1 . . . 3 . . . 2 . Special Weapon . | . . . . . . . . . . . Impact Weapon 1 | . . . . . 1 . . . . . Slashing Weapon 4 | . . . . . 1 . . . 3 . Piercing Weapon . | . . . . . . . . . . . Special Melee Weapon 3 | . . . . . . . 1 . 2 . Unidentified Prototypes 7 | . . 1 . . 1 2 1 . 2 . Corrupted Parts 2 | . . . . . . . . . 2 . System Corruption 2 | . . . . . . . . . 2 . Parts Lost 36 | . 5 . . . 5 1 . . 14 11 Power 4 | . 2 . . . 1 . . . 1 . Propulsion 11 | . 1 . . . 1 . . . 7 2 Utility 17 | . 1 . . . 3 1 . . 4 8 Weapon 4 | . 1 . . . . . . . 2 1 Highest Loss Streak 8 | . 2 . . . 2 1 . . 8 6 To Critical Strikes 1 | . . . . . . . . . 1 . Average Slot Usage (%) 95 | . 94 100 86 100 99 99 99 100 93 38 Engine 6 | . 10 11 . . 3 7 9 9 4 . Core 2 | . . 2 14 14 5 1 . . . . Treads 27 | . 14 14 14 14 33 36 35 36 20 1 Wheel 2 | . 12 14 14 14 1 . . . . . Hover 1 | . . . . . . . . . 9 . Device 10 | . 12 14 14 14 12 9 9 9 9 5 Storage 9 | . 14 14 14 14 9 9 9 9 5 . Processor 2 | . . . . . . . . . 11 6 Hackware 8 | . . . . . 3 9 10 18 8 19 Protection 4 | . . . . . 9 8 7 . 5 . Energy Cannon 3 | . 13 14 7 14 5 . . . . . Ballistic Gun 6 | . 13 14 7 14 7 10 8 . 2 . Ballistic Cannon 7 | . . . . . 4 7 9 16 8 . Naked Turns . | . . . . . . . . . . . Heaviest Build 122 | 15 90 91 91 91 110 114 108 106 122 14 Greatest Support 114 | 10 40 16 16 16 83 80 80 84 114 20 Greatest Overweight (x) 5 | 2 5 5 5 5 5 1 1 1 5 4 Average Overweight (x) 1 | . . 5 5 5 1 1 1 1 1 . Largest Inventory Capacity 25 | 8 25 25 25 25 25 25 25 25 25 5 Average Capacity 23 | 7 10 25 25 25 25 25 25 25 24 5 Most Carried 25 | 2 16 24 25 25 25 25 25 25 25 5 Average Carried 22 | 1 7 20 24 23 24 24 24 24 24 3 Final Capacity 25 | 8 25 25 25 25 25 25 25 25 5 5 Final Carried 25 | 2 16 24 23 25 25 25 25 25 3 1 Class Distribution -------------------- 43% | Mutant 32% | Commander-Mutant 18% | Scavenger-Mutant 5% | Hacker-Mutant Dominant Class ---------------- Mutant | -10/Materials Mutant | -10/Mines Mutant | -10/Exiles Mutant | -9/Mines Scavenger-Mutant | -8/Materials Mutant | -8/Storage Commander-Mutant | -8/Recycling Commander-Mutant | -8/Scraptown Mutant | -6/Factory Hacker-Mutant | -5/Factory Resources | -11 -10 -10 -10 -9 -8 -8 -8 -8 -6 -5 ----------- Run | Yrd Mat Min Exi Min Mat Sto Rec Scr Fac Fac Matter Collected 5303 | 307 365 52 . 10 1487 922 90 50 1807 213 Remotely . | . . . . . . . . . . . Salvage Created 7362 | 98 1035 104 . . 2382 1469 207 . 2038 29 Parts 411 | 5 59 10 . . 133 89 10 . 101 4 Haulers Intercepted 14 | . 2 . . . 5 6 . . 1 . Recyclers Shooed 10 | . 1 . . . . 1 . . 8 . Parts Field Recycled . | . . . . . . . . . . . Retrieved Matter . | . . . . . . . . . . . Parts Self-Destructed . | . . . . . . . . . . . Prevented . | . . . . . . . . . . . Kills | -11 -10 -10 -10 -9 -8 -8 -8 -8 -6 -5 ------- Run | Yrd Mat Min Exi Min Mat Sto Rec Scr Fac Fac Combat Hostiles Destroyed 118 | . 21 . . . 46 19 1 . 30 1 Guns 40 | . 3 . . . 18 13 . . 5 1 Cannons 61 | . 15 . . . 19 6 1 . 20 . AOE 17 | . 3 . . . 9 . . . 5 . Classes Destroyed 19 | 2 6 1 . . 5 2 . . 2 1 Worker 13 | . 1 1 . . 1 2 . . 8 . Builder 11 | . . 1 . . 4 1 . . 5 . Tunneler 2 | 1 . 1 . . . . . . . . Hauler 14 | . 2 . . . 5 6 . . 1 . Recycler 20 | 1 3 1 . . 3 3 3 . 6 . Mechanic 3 | . . . . . . 2 . . 1 . Operator 2 | . . . . . 1 . . . 1 . Watcher 8 | . 1 . . . 5 2 . . . . Swarmer 24 | . 6 . . . 12 3 . . 3 . Cutter 1 | . . . . . . . . . . 1 Grunt 52 | . 14 . . . 19 9 . . 10 . Brawler 3 | . . . . . 3 . . . . . Duelist 2 | . . . . . 2 . . . . . Sentry 20 | . . . . . 8 6 1 . 5 . Specialist 3 | . . . . . 2 . . . 1 . Hunter 5 | . . . . . . 1 . . 4 . Programmer 6 | . . . . . . . . . 6 . Behemoth 1 | . . . . . . . . . 1 . Subdweller 1 | . 1 . . . . . . . . . Best Kill Streak 10 | 2 5 2 . . 10 7 2 . 9 1 Combat Bots Only 5 | . 3 . . . 5 5 1 . 4 1 Max Kills in Single Turn 4 | 1 2 1 . . 4 2 2 . 3 1 Gunslinging . | . . . . . . . . . . . Exploded 3 | . 1 . . . 3 . . . 2 . Melee . | . . . . . . . . . . . Uniques/NPCs Destroyed . | . . . . . . . . . . . Combat | -11 -10 -10 -10 -9 -8 -8 -8 -8 -6 -5 -------- Run | Yrd Mat Min Exi Min Mat Sto Rec Scr Fac Fac Hostile Shots Fired 994 | . 93 . . . 174 105 . . 466 156 Missed 319 | . 23 . . . 50 24 . . 158 64 Damage Taken 10665 | . 833 . . . 1867 1188 177 . 4741 1859 Core 2299 | . 135 . . . 287 97 21 . 754 1005 Absorbed by Shields 63 | . . . . . . . . . 63 . Redirected to Shielding 18 | . . . . . . . . . 18 . Ignored by Resistances 110 | . . . . . 32 78 . . . . Regen/Repaired (Parts) 1 | . 1 . . . . . . . . . Core Remaining (%) 45 | 100 . . . 46 . . . 26 11 . Volleys Fired 522 | 9 97 4 . . 154 109 4 . 139 6 Largest 2 | 2 2 2 . . 2 2 2 . 2 1 Hottest 138 | 60 80 80 . . 138 96 73 . 96 55 Shots Fired 994 | 18 175 8 . . 308 213 8 . 258 6 Gun 537 | 18 95 4 . . 155 173 4 . 82 6 Cannon 434 | . 76 4 . . 145 40 4 . 165 . Launcher 23 | . 4 . . . 8 . . . 11 . Special . | . . . . . . . . . . . Kinetic 784 | 9 92 4 . . 211 213 8 . 246 1 Thermal 160 | 4 76 4 . . 76 . . . . . Explosive 23 | . 4 . . . 8 . . . 11 . Electromagnetic 27 | 5 3 . . . 13 . . . 1 5 Robot Hit Streak 19 | 4 12 5 . . 14 19 2 . 10 2 Robot Miss Streak 5 | 2 3 1 . . 5 4 1 . 5 2 Penetration Max 1 | . . . . . 1 1 . . 1 . Secondary Targets 5 | . . . . . . 4 . . 1 . Max Gunslinging Chain 1 | . . . . . . 1 . . 1 . Shots Hit Robots 623 | 11 109 6 . . 189 134 5 2 163 4 Core Hits 314 | 3 45 4 . . 96 56 4 . 104 2 Critical Kills 3 | . . . . . . 3 . . . . Critical Parts Destroyed 2 | . . . . . 1 . . . . 1 Critical Strikes 37 | . . . . . 6 6 3 . 21 1 Destroy 5 | . . . . . 1 3 . . . 1 Blast 32 | . . . . . 5 3 3 . 21 . Melee Attacks 13 | . . . . . 4 . 1 2 6 . Impact 3 | . . . . . 3 . . . . . Slashing 7 | . . . . . 1 . . . 6 . Piercing . | . . . . . . . . . . . Sneak Attacks 9 | . . . . . 1 . 1 2 5 . Combat Hostiles . | . . . . . . . . . . . Follow-up Attacks . | . . . . . . . . . . . Damage Inflicted 15580 | 136 1776 93 . . 4887 2740 142 . 5721 85 Guns 6063 | 136 687 40 . . 1776 2240 35 . 1064 85 Cannons 7092 | . 938 53 . . 2410 476 107 . 3108 . Explosions 1926 | . 151 . . . 631 . . . 1144 . Melee 436 | . . . . . 70 . . . 366 . Ramming 63 | . . . . . . 24 . . 39 . Kinetic 10640 | 65 656 40 . . 2863 2716 142 . 4133 25 Thermal 2199 | 32 938 53 . . 1060 . . . 116 . Explosive 1810 | . 151 . . . 631 . . . 1028 . Electromagnetic 432 | 39 31 . . . 263 . . . 39 60 Impact 70 | . . . . . 70 . . . . . Slashing 366 | . . . . . . . . . 366 . Piercing . | . . . . . . . . . . . Highest Corruption 5 | . 2 2 2 2 . . . . 5 1 Average Corruption 1 | . 2 2 2 2 . . . . 1 1 Corruption Purged 2 | . . . . . . . . . 2 . Corruption Blocked . | . . . . . . . . . . . Effects 49 | . 2 15 5 3 . . . . 24 . Message Errors 13 | . . 6 . 1 . . . . 6 . Matter Fused 7 | . . . 2 . . . . . 5 . Heat Flow Errors 2 | . . 1 . . . . . . 1 . Energy Discharges 11 | . 1 5 1 1 . . . . 3 . Parts Rejected 1 | . . . . . . . . . 1 . Data Loss (minor) 13 | . 1 3 2 1 . . . . 6 . Data Loss (major) 1 | . . . . . . . . . 1 . Weapon Failures 1 | . . . . . . . . . 1 . Overload Shots . | . . . . . . . . . . . Overflow Damage 330 | . . . . . 106 14 . . 210 . Projectiles 78 | . . . . . 34 14 . . 30 . Explosions 60 | . . . . . 22 . . . 38 . Melee 192 | . . . . . 50 . . . 142 . Knockbacks 35 | . . . . . 13 5 . . 17 . Impact . | . . . . . . . . . . . Kinetic 33 | . . . . . 13 5 . . 15 . Secondary 2 | . . . . . . . . . 2 . Self-Inflicted Damage 81 | . . . . . 40 . . . 41 . Shots 4 | . . . . . 2 . . . 2 . Rammed 5 | . . . . . . 3 . . 2 . Targets Rammed 7 | . . . . . . 3 . . 4 . Kicked . | . . . . . . . . . . . Crushed 2 | . . . . . . . . . 2 . Highest Temperature 771 | . 269 236 . . 54 1 . . 771 . Average Temperature 107 | . 60 134 . . 15 1 . . 218 . Received Heat Transfer 3420 | . 381 . . . 819 594 90 . 1353 183 Effects 11 | . 1 . . . . . . . 10 . Energy Bleed 1 | . . . . . . . . . 1 . Interference 2 | . 1 . . . . . . . 1 . Matter Decay 1 | . . . . . . . . . 1 . Short Circuit 3 | . . . . . . . . . 3 . Damage (minor) 2 | . . . . . . . . . 2 . Damage (core) 2 | . . . . . . . . . 2 . Siege Activations . | . . . . . . . . . . . Robots Corrupted 1 | . . . . . 1 . . . . . Combat Hostiles . | . . . . . . . . . . . Parts Fried 7 | . . . . . 5 . . . 2 . Impact Corruptions 3 | . . . . . 2 . . . 1 . Robots Melted . | . . . . . . . . . . . Combat Hostiles . | . . . . . . . . . . . Parts Melted 4 | . 1 . . . 3 . . . . . Heat Transferred 4171 | 75 1924 111 . . 1961 . . . 100 . Parts Sabotaged . | . . . . . . . . . . . Parts Stolen . | . . . . . . . . . . . Parts Stripped . | . . . . . . . . . . . Power Chain Reactions . | . . . . . . . . . . . Alert | -11 -10 -10 -10 -9 -8 -8 -8 -8 -6 -5 ------- Run | Yrd Mat Min Exi Min Mat Sto Rec Scr Fac Fac Peak Influence 986 | 10 344 113 . . 986 798 167 . 651 717 Initial 372 | . 6 90 . . . 372 73 . . 294 Average 271 | 3 137 45 . . 443 411 59 . 271 373 Maximum Alert Level 3 | . 1 . . . 3 3 . . 2 3 Low Security (%) 56 | 100 74 100 . 100 31 34 100 . 54 . Level 1 12 | . 25 . . . 13 9 . . 10 77 Level 2 23 | . . . . . 27 49 . . 35 19 Level 3 7 | . . . . . 27 5 . . . 1 Level 4 . | . . . . . . . . . . . Level 5 . | . . . . . . . . . . . High Security . | . . . . . . . . . . . Max Security . | . . . . . . . . . . . Sterilizations 1 | . . . . . 1 . . . . . Squads Dispatched 47 | . 6 . . . 10 6 . . 16 9 Investigation 14 | . 5 . . . 3 1 . . 2 3 Extermination 7 | . . . . . . . . . 6 1 Reinforcement 16 | . 1 . . . 3 1 . . 6 5 Assault 4 | . . . . . 1 1 . . 2 . Garrison 6 | . . . . . 3 3 . . . . Intercept . | . . . . . . . . . . . Searches Triggered 1 | . . . . . . . . . . 1 Construction Impeded 4 | . . . . . 1 . . . 3 . Haulers Reinforced 1 | . . . . . . . . . 1 . Active Scanning Responses . | . . . . . . . . . . . Cargo Convoy Interrupts . | . . . . . . . . . . . Stealth | -11 -10 -10 -10 -9 -8 -8 -8 -8 -6 -5 --------- Run | Yrd Mat Min Exi Min Mat Sto Rec Scr Fac Fac Distress Signals 18 | . 2 . . . 6 5 . . 3 2 Communications Jammed . | . . . . . . . . . . . Distress Signals . | . . . . . . . . . . . Times Spotted 258 | . 32 1 . . 72 37 2 . 53 61 Peak Tracking Total 16 | . 3 1 . . 5 6 . . 7 16 Tactical Retreats 25 | . 1 . . . 5 2 . . 5 12 Traps | -11 -10 -10 -10 -9 -8 -8 -8 -8 -6 -5 ------- Run | Yrd Mat Min Exi Min Mat Sto Rec Scr Fac Fac Traps Triggered 12 | . 1 . . . 1 7 . . 1 2 Indirectly . | . . . . . . . . . . . Trap Hack Attempts . | . . . . . . . . . . . Triggered . | . . . . . . . . . . . Disarmed . | . . . . . . . . . . . Reprogrammed . | . . . . . . . . . . . Reused 4 | . . . . . 4 . . . . . Traps Extracted . | . . . . . . . . . . . Installed 5 | . . . . . 5 . . . . . Triggered 4 | . . . . . 4 . . . . . Most Traps Carried 5 | . . . . 5 5 . . 1 1 . Machines | -11 -10 -10 -10 -9 -8 -8 -8 -8 -6 -5 ---------- Run | Yrd Mat Min Exi Min Mat Sto Rec Scr Fac Fac Machines Disabled 24 | . 2 . . . 9 5 . . 6 2 Max in Single Turn 3 | . 1 . . . 1 1 . . 3 1 Garrison Access 2 | . . . . . . 1 . . 1 . Machines Repaired . | . . . . . . . . . . . Machines Dismantled . | . . . . . . . . . . . Machines Sabotaged . | . . . . . . . . . . . Overloaded Fab Kills . | . . . . . . . . . . . Hacking | -11 -10 -10 -10 -9 -8 -8 -8 -8 -6 -5 --------- Run | Yrd Mat Min Exi Min Mat Sto Rec Scr Fac Fac Machines Accessed 56 | . 8 . 1 . 7 9 13 5 8 5 Terminals 30 | . 5 . . . 5 8 5 . 4 3 Fabricators 2 | . . . . . . . . . 2 . Repair Stations 1 | . 1 . . . . . . . . . Recycling Units 11 | . 2 . . . 1 . 7 . . 1 Scanalyzers 2 | . . . . . 1 . . . 1 . Garrison Access 3 | . . . . . . 1 . . 1 1 Total Hacks 213 | . 33 . 23 . 28 23 36 38 14 18 Successful 145 | . 18 . 23 . 12 10 24 38 8 12 Failed 67 | . 14 . . . 16 13 12 . 6 6 Catastrophic 7 | . 1 . . . 1 2 . . 3 . Database Lockouts 1 | . 1 . . . . . . . . . Manual 35 | . 6 . . . 6 5 11 . 4 3 Terminals 94 | . 22 . . . 22 22 13 . 6 9 Fabricators 4 | . . . . . . . . . 4 . Repair Stations 5 | . 5 . . . . . . . . . Recycling Units 32 | . 6 . . . 2 . 18 . . 6 Scanalyzers 7 | . . . . . 4 . . . 3 . Garrison Access 5 | . . . . . . 1 . . 1 3 Terminal Hacks 106 | . 12 . 23 . 6 9 12 38 1 5 Record 65 | . . . 23 . . . 5 37 . . Part Schematic 2 | . . . . . . . 2 . . . Robot Analysis 2 | . 2 . . . . . . . . . Prototype ID Bank 6 | . 2 . . . 1 . 2 . . 1 Open Door 2 | . . . . . . 2 . . . . Level Access Points 1 | . . . . . 1 . . . . . Branch Access Points 2 | . . . . . 1 . . . . 1 Emergency Access Points 1 | . 1 . . . . . . . . . Terminal Index 1 | . 1 . . . . . . . . . Recycling Unit Index 1 | . . . . . . . . . . 1 Scanalyzer Index 1 | . . . . . . 1 . . . . Alert Level 2 | . . . . . . 1 1 . . . Unreport Threat 6 | . 1 . . . 2 3 . . . . Locate Traps 6 | . 3 . . . . 1 . . 1 1 Recall Reinforcements 1 | . . . . . . . 1 . . . Hauler Manifests 2 | . . . . . 1 . . . . 1 Zone Layout 4 | . 2 . . . . 1 1 . . . Derelict Proto ID Bank 1 | . . . . . . . . 1 . . Fabricator Hacks 2 | . . . . . . . . . 2 . Network Status 1 | . . . . . . . . . 1 . Load Schematic 1 | . . . . . . . . . 1 . Repair Station Hacks 3 | . 3 . . . . . . . . . Scan Component 2 | . 2 . . . . . . . . . Repair 1 | . 1 . . . . . . . . . Recycling Unit Hacks 12 | . 1 . . . 1 . 5 . . 5 Recycle Component 2 | . . . . . . . . . . 2 Process 1 | . . . . . . . . . . 1 Retrieve Matter 2 | . . . . . . . . . . 2 Retrieve Components 7 | . 1 . . . 1 . 5 . . . Scanalyzer 7 | . . . . . 4 . . . 3 . Insert Component 3 | . . . . . 1 . . . 2 . Analyze 4 | . . . . . 3 . . . 1 . Garrison Access Hacks 2 | . . . . . . 1 . . 1 . Seal Access 2 | . . . . . . 1 . . 1 . Unauthorized Hacks 13 | . 2 . . . 1 . 7 . 1 2 Terminals 2 | . . . . . . . . . 1 1 Botnet 2 | . . . . . . . . . 1 1 Fabricators . | . . . . . . . . . . . Repair Stations 1 | . . . . . . . . . . 1 Recycling Units 10 | . 2 . . . 1 . 7 . . . Tunnel 10 | . 2 . . . 1 . 7 . . . Scrapoids 1 | . . . . . . . . . . 1 Scanalyzers . | . . . . . . . . . . . Garrison Access . | . . . . . . . . . . . Data Cores Recovered 2 | . . . . . 1 . . . 1 . Used 2 | . . . . . 1 . . . 1 . Hacking Detections 38 | . 7 . . . 6 7 8 . 6 4 Full Trace Events 10 | . 3 . . . 2 1 . . 2 2 Feedback Events . | . . . . . . . . . . . Feedback Blocked . | . . . . . . . . . . . Robot Schematics Acquired . | . . . . . . . . . . . Robots Built . | . . . . . . . . . . . Authchips . | . . . . . . . . . . . Time . | . . . . . . . . . . . Total Robot Build Rating . | . . . . . . . . . . . Part Schematics Acquired 3 | . . . . . . . 2 . 1 . Parts Built . | . . . . . . . . . . . Authchips . | . . . . . . . . . . . Time . | . . . . . . . . . . . Total Part Build Rating . | . . . . . . . . . . . Parts Repaired 1 | . 1 . . . . . . . . . Time 53 | . 53 . . . . . . . . . Parts Recycled 2 | . . . . . . . . . . 2 Recycled Matter 135 | . . . . . . . . . . 135 Retrieved Matter 135 | . . . . . . . . . . 135 Retrieved Components 28 | . 8 . . . 6 . 14 . . . Parts Scanalyzed 1 | . . . . . 1 . . . . . Part Schematics Acquired 1 | . . . . . . . . . 1 . Parts Damaged . | . . . . . . . . . . . Bothacking | -11 -10 -10 -10 -9 -8 -8 -8 -8 -6 -5 ------------ Run | Yrd Mat Min Exi Min Mat Sto Rec Scr Fac Fac Used RIF Installer . | . . . . . . . . . . . Robots Hacked 3 | . . . . . . . 1 2 . . Non-combat . | . . . . . . . . . . . Combat 3 | . . . . . . . 1 2 . . Robot Hacks Applied 3 | . . . . . . . 1 2 . . parse_system 3 | . . . . . . . 1 2 . . Relay Couplers Released . | . . . . . . . . . . . Fabnet Peak Effective % . | . . . . . . . . . . . Robots Rewired . | . . . . . . . . . . . Allies Hacked . | . . . . . . . . . . . Hacks Repelled . | . . . . . . . . . . . Allies | -11 -10 -10 -10 -9 -8 -8 -8 -8 -6 -5 -------- Run | Yrd Mat Min Exi Min Mat Sto Rec Scr Fac Fac Total Allies 18 | . . 3 . . . 10 . . . 5 Largest Group 10 | . . 3 3 3 3 10 10 9 9 5 Highest-Rated Group 235 | . . 40 40 40 40 173 173 157 157 235 Highest-Rated Ally 47 | . . 16 16 16 16 29 29 29 29 47 Total Orders 1 | . . . . . . . . . 1 . EXPLORE 1 | . . . . . . . . . 1 . Ally Attacks 139 | . . 13 . . 50 8 6 . 44 18 Total Damage 1582 | . . 171 . . 422 84 71 . 497 337 Kills 21 | . . 2 . . 7 1 1 . 6 4 Allies Corrupted . | . . . . . . . . . . . Allies Melted 1 | . . . . . . . 1 . . . Intel | -11 -10 -10 -10 -9 -8 -8 -8 -8 -6 -5 ------- Run | Yrd Mat Min Exi Min Mat Sto Rec Scr Fac Fac Robot Analysis Total 2 | . 2 . . . . . . . . . Derelict Logs Recovered 2 | . . 1 . 1 . . . . . . Drone Launches 4 | . . . . . . . . . 4 . Drone Recoveries 2 | . . . . . . . . . 2 . Exploration | -11 -10 -10 -10 -9 -8 -8 -8 -8 -6 -5 ------------- Run | Yrd Mat Min Exi Min Mat Sto Rec Scr Fac Fac Turns Passed 17297 | 92 1271 1131 459 414 3157 2385 1794 3102 2890 602 Spaces Moved 8013 | 58 774 633 259 233 973 793 705 1260 1259 1066 Core 427 | 12 . . . . . . . . 33 382 Treads 4408 | . 44 . . . 925 793 705 1260 681 . Legs . | . . . . . . . . . . . Wheels 1950 | 46 730 633 259 233 48 . . . . 1 Hover 545 | . . . . . . . . . 545 . Flight 683 | . . . . . . . . . . 683 Fastest Speed 40 | 50 95 175 175 175 175 250 250 237 50 40 Average Speed 185 | 87 112 175 175 175 239 250 250 244 182 49 Slowest Speed 306 | 150 175 175 175 175 250 250 250 250 306 250 Overloaded Moves . | . . . . . . . . . . . Propulsion Burnouts . | . . . . . . . . . . . Robots Hopped 4 | . . . . . . . . . . 4 Cave-ins Triggered . | . . . . . . . . . . . Exploration Rate (%) 65 | 4 85 99 60 54 80 89 97 89 31 34 Regions Visited 10 Branch Regions 6 Pre-discovered Areas 13 | . 2 1 1 1 1 . 7 . . . Known Exits Taken 2 | . . . . . 1 . . . 1 . Unknown Exits Taken 8 | 1 1 1 1 1 . 1 1 1 . . Scrap Searched 8 | . . 1 . 2 . . . 5 . . Spaces Dug 4 | . . . . . 3 . . . 1 . Terrain Destroyed 212 | . 16 . . . 88 17 2 . 89 . Melee 4 | . . . . . 3 . . . 1 . Projectile 76 | . . . . . 25 17 2 . 32 . AOE 132 | . 16 . . . 60 . . . 56 . Terrain Rammed . | . . . . . . . . . . . Walls Destroyed . | . . . . . . . . . . . Machines Disabled . | . . . . . . . . . . . Actions | -11 -10 -10 -10 -9 -8 -8 -8 -8 -6 -5 --------- Run | Yrd Mat Min Exi Min Mat Sto Rec Scr Fac Fac Total 9481 | 77 1007 647 267 242 1497 984 732 1286 1614 1128 Wait 476 | . 98 1 . . 208 39 8 13 75 34 Move 7995 | 57 773 632 258 232 972 792 704 1259 1258 1058 Hop 4 | . . . . . . . . . . 4 Pick Up 112 | 2 16 6 . 6 42 8 4 3 23 2 Fast Attach 68 | 8 4 . 2 . 13 5 2 . 24 10 Attach 32 | . 2 . 2 . 10 . . . 11 7 Detach 9 | . 1 . 2 . . . . . 1 5 Swap 86 | . 10 4 . . 33 6 3 4 26 . Drop 141 | 1 6 . 3 4 56 12 6 5 46 2 Fire 522 | 9 97 4 . . 154 109 4 . 139 6 Melee 13 | . . . . . 4 . 1 2 6 . Ram 1 | . . . . . . . . . 1 . Kick . | . . . . . . . . . . . Crush 6 | . . . . . . 3 . . 3 . Escape Stasis 10 | . . . . . . 10 . . . . Rewire . | . . . . . . . . . . . Trap 5 | . . . . . 5 . . . . . Miscellaneous 1 | . . . . . . . . . 1 . Route ------- -11/Scrapyard -10/Materials (discovered 4 exits: [*Mat x2] / [*Min x2]) -10/Mines (discovered 4 exits: [*Mat x2] / *Exi / [*Sub]) -10/Exiles -9/Mines -8/Materials (discovered 5 exits: *Fac x3 / *Sto x2) -8/Storage (discovered 2 exits: *Fac / *Rec) -8/Recycling (discovered 2 exits: *Fac / *Scr) -8/Scraptown (discovered 2 exits: *Fac x2) -6/Factory -5/Factory (discovered 5 exits: [*Fac] / Upp x2 / Ext x2) History --------- Turn | Location | Event 9 | -11/Scrapyard | Discovered new exit (range 15) 93 | -11/Scrapyard | Entered Materials 145 | -10/Materials | Central database locked down 305 | -10/Materials | Discovered new exit (range 16) 308 | -10/Materials | Build established: Mutant 502 | -10/Materials | Repaired Broken Imp. Heat Sink 593 | -10/Materials | Derelicts attacked the area 620 | -10/Materials | Discovered new exit (range 16) 987 | -10/Materials | Discovered new exit (range 15) 1147 | -10/Materials | Discovered new exit (range 15) 1209 | -10/Materials | Core integrity fell below 50% 1364 | -10/Materials | Entered Mines 1404 | -10/Mines | Learned 4 Materials zone layouts 1415 | -10/Mines | Assisted by bots powering up and referring to "LRC-V3" 1462 | -10/Mines | Found a damaged Exp. Sensor Array with a note attached 1466 | -10/Mines | Found Prototype Device 1467 | -10/Mines | Identified Exp. Sensor Array 1562 | -10/Mines | Discovered new exit (range 12) 1737 | -10/Mines | Discovered new exit (range 6) 1744 | -10/Mines | Received a Rocket Launcher from a helpful Derelict 2356 | -10/Mines | Discovered new exit (range 6) 2487 | -10/Mines | Deemed a non-threat by the Exiles lab entrance 2487 | -10/Mines | Discovered new exit (range 5) 2495 | -10/Mines | Entered Exiles 2495 | -10/Exiles | Accompanied by 3 allies 2539 | -10/Exiles | Met 8R-AWN 2572 | -10/Exiles | Met EX-HEX 2625 | -10/Exiles | Met EX-BIN 2651 | -10/Exiles | Met EX-DEC 2658 | -10/Exiles | Learned location of Zion (-6) 2937 | -10/Exiles | Discovered new exit (range 12) 2954 | -10/Exiles | Entered Mines 2954 | -9/Mines | Accompanied by 3 allies 3185 | -9/Mines | Found a hidden stash of uninstalled traps 3306 | -9/Mines | Discovered new exit (range 4) 3368 | -9/Mines | Entered Materials 3368 | -8/Materials | Accompanied by 3 allies 3368 | -8/Materials | Evolved 4 slots: Propulsion x2, Utility x2 3369 | -8/Materials | Identified exit to Factory 4154 | -8/Materials | Build established: Scavenger-Mutant 4452 | -8/Materials | Discovered new exit (range 7) 4631 | -8/Materials | Identified exit to Storage 4640 | -8/Materials | Garrison activated, responded to threat 4968 | -8/Materials | First assault squad dispatched 6017 | -8/Materials | Core integrity fell below 50% 6364 | -8/Materials | Sterilization system engaged 6364 | -8/Materials | Non-combat units ordered to evacuate 6426 | -8/Materials | Build established: Mutant 6464 | -8/Materials | Combat units ordered to evacuate 6525 | -8/Materials | Entered Storage 6775 | -8/Storage | Garrison activated, responded to threat 7058 | -8/Storage | Found Prototype Processor 7551 | -8/Storage | Discovered exit to Factory (range 7) 7639 | -8/Storage | Met 01-MTF 7725 | -8/Storage | First assault squad dispatched 8206 | -8/Storage | Discovered new exit (range 9) 8603 | -8/Storage | Assisted by bots powering up and referring to "LRC-V3" 8900 | -8/Storage | Build established: Commander-Mutant 8910 | -8/Storage | Entered Recycling 8910 | -8/Recycling | Accompanied by 11 allies (01-MTF) 10182 | -8/Recycling | Discovered new exit (range 8) 10595 | -8/Recycling | Scanned before Scraplab entrance 10656 | -8/Recycling | Entered Scraplab 10694 | -8/Recycling | Discovered new exit (range 3) 10704 | -8/Recycling | Entered Scraptown 10704 | -8/Scraptown | Accompanied by 9 allies 11010 | -8/Scraptown | Visited UFD Registry 11010 | -8/Scraptown | Registered with UFD as "Deathpod" 11051 | -8/Scraptown | Visited Cyclists 11086 | -8/Scraptown | Entered Cyclist Reading Room 11136 | -8/Scraptown | Heard Great Nut preacher, LISTEN AND RECITE! 11141 | -8/Scraptown | Visited Red Mages 11219 | -8/Scraptown | Visited TADAMA 11262 | -8/Scraptown | Visited Spacefarers 11474 | -8/Scraptown | Discovered new exit (range 13) 12018 | -8/Scraptown | Visited IN-MT5's Study 12083 | -8/Scraptown | Visited Assassins FH 12373 | -8/Scraptown | Visited Shadow of the Wyrm 12453 | -8/Scraptown | Visited DA-N13 Charitable Foundation 12468 | -8/Scraptown | Found DCF Scrap (28 items) 12567 | -8/Scraptown | Visited Science Guys 12664 | -8/Scraptown | Visited Chapter 10 12770 | -8/Scraptown | Visited Infowarlord's Domain 12787 | -8/Scraptown | Found Exp. Terrain Scanner 12852 | -8/Scraptown | Visited Junk Repository 12916 | -8/Scraptown | Visited Botcube Research 12959 | -8/Scraptown | Visited Junk Repository 13063 | -8/Scraptown | Visited LU-1G1's Boring Crew 13772 | -8/Scraptown | Discovered new exit (range 5) 13806 | -8/Scraptown | Entered Factory 13806 | -6/Factory | Accompanied by 9 allies 13806 | -6/Factory | Evolved 4 slots: Propulsion x1, Utility x3 14216 | -6/Factory | Lost 7 allies 14463 | -6/Factory | Build established: Mutant 15430 | -6/Factory | Build established: Scavenger-Mutant 15607 | -6/Factory | Identified Exp. Targeting Computer 16072 | -6/Factory | Build established: Mutant 16151 | -6/Factory | Discovered new exit (range 44) 16256 | -6/Factory | First assault squad dispatched 16396 | -6/Factory | Identified exit to Factory 16466 | -6/Factory | Spotted B-75 Beast 16560 | -6/Factory | Build established: Hacker-Mutant 16632 | -6/Factory | Core integrity fell below 50% 16632 | -6/Factory | Destroyed B-75 Beast 16665 | -6/Factory | Core integrity fell below 20% 16689 | -6/Factory | Lost 8 parts (1p3n2u2w) 16696 | -6/Factory | Entered another Factory area 16696 | -5/Factory | Evolved 2 slots: Utility x2 16936 | -5/Factory | Identified exit to Upper Caves 16936 | -5/Factory | Identified exit to Extension 17045 | -5/Factory | Spotted B-75 Beast 17126 | -5/Factory | Scrapoids reinforcements arrived? 17139 | -5/Factory | Lost 3 parts (1n2u) 17196 | -5/Factory | Discovered new exit (range 8) 17246 | -5/Factory | Core integrity fell below 50% 17276 | -5/Factory | Core integrity fell below 20% 17296 | -5/Factory | Search patrols dispatched 17298 | -5/Factory | Destroyed by S-27 Virus with Autogun Last Messages --------------- 17254_ Imp. Reaction Control System destroyed. 17254_ U-05 Engineer lays Concrete. 17264_ Acquired 66 matter. 17265_ Acquired Carbon-fiber Leg. 17265_ Hacking Suite destroyed. 17265_ S-27 Virus destroyed. 17267_ Acquired Ovr. Huge Scrapsphere. 17267_ Carbon-fiber Leg severed. 17267_ K-01 Serf collects debris. 17268_ Ovr. Huge Scrapsphere repairs itself (+5). 17268_ Acquired 15 matter. 17269_ Penetrated by Slug. 17272_ K-01 Serf collects debris. 17272_ R-10 Processor collects Mining Laser. 17275_ Penetrated by Slug. 17275_ Imp. Hacking Suite destroyed. 17279_ Enh. Optical Array severed. 17296_ ALERT: Heightened foreign activity detected, multiple search patrols dispatched. Map ----- +----------------------------------------------------+ | ???????" "?????????# # #???????????????# | | ??????? T?????????# # #???????????????# | | ???????# #?????????# """" # #???????????????# | | ???????# #?????????# """" / #???????????????# | | ???????# ######?##?# """" # #???????????????# | | ?#?????# ## #?# """" # ##############??# | | #??????# ## """ /#?# # + ! #??# | | ???????# ## """ #?# ! # # #??# | | ?????### ## """ #?########## # """ #??# | | ????? # # =#??????????# # """ #??# | | ???? # # """ #??????????# # """ #??# | | ???? # + """ #??????????# # #??## | | ??"" # # """ ############s# #??# | | # !# # # """" """" #??# | | """" ## ## "S # s # """" """" #??# | | ## ## """ # # """" """" #??# | | """" ## ## "" # s # """" """" #??# | | ## ## # # #??# | | """" ## ######### #######+######### | | ## #???????# #???# + | | ? ## ##?????## p ##??# ####### | | ###+### #?????## g #???# #?????# | | #??????# R #???# #?????# | | T #??????# +?? #?????# | | #??????# # #?#???## | | #### #?###########@####### #??????? | | #??######## # #??????? | | ##????????# """ # #??????? | | #?????????# "R # !! """" ######## | | #????#????# """ # ! """" | | #?????????# "" = + """" | | #?#???????# # """ | | ## ################/### """" """" """ ######## | | ?# """" """" " ????# | | ?# """" """" "F" ????#"" | | ?# """ #????#"" | | ## #????#"" | | #????#"" | | ####+#+############+### ###########+#??????#"" | | ## # #??????????????????#"" | | ## """ """ # T#?????????????????# | | ## """ """ # #?????????????????### | | ## """ """ # ##???????????????????? | | #? # #????????????????????? | | ############ #????????????????????? | | #??????????# #????????????????????? | | #??????????# #????????????????????? | | !#??????????# #????????????????????? | | #??????????# #????????????????????? | | #??????????# #????????????????????? | +----------------------------------------------------+ Best States ------------- Heat Dissipation 64 Energy Generation 18 Energy Capacity 300 Matter Stores 300 Matter Capacity 300 Sight Range 22 Robot Scan Range 20 Terrain Scan Range 16 Terrain Scan Density 85 Cloak Strength 2 Armor Coverage 600 Resistance: KI 20 Resistance: TH 10 Resistance: EM 15 Utility Shielding 66 Evasion (%) 62 Core Analysis 6 Recoil Reduction 5 Kinecelleration 30 Offensive Hacking 32 Defensive Hacking 10 Authchip Count 3 Item Schematics ----------------- Hacking Suite | -8/Recycling | Hacked EM Disruption Field | -8/Recycling | Hacked Imp. VTOL Module | -6/Factory | Scanalyzed Robot Schematics ------------------ None Fabricated ------------ Nothing Alien Tech Used ----------------- None Achievements -------------- None Challenges ------------ None Game ------ Seed DecoyModifiedAirjet Manual? 0 Play Time 02:08:59 Cumulative 207.4 hours Start 2024.08.02 @ 21:34:31 End 2024.08.03 @ 15:37:59 Sessions 3 Manual Loads 0 Difficulty Rogue Special Mode None Game No. 174 Rogue 169 Adventurer 5 Explorer 0 Win Type - Total 4 Types 2/0/2/0/0/0/0/0/0 Lore% 65 Gallery% 77 Achievement% 60 Wizard Run 0 Options --------- Layout 2 ASCII 0 Keyboard 0 Movement Mouse Keybinds 0 Fullscreen 2 Font 24/Smallcaps Map View 50x44 Zoom Use 0% Tactical HUD 1 Map Filters NONE Filters NONE Steam 1 RUN: 915cc0c2-249a-4817-a5f0-bcb5823463ff